[Event "*** Titled Tuesday Blitz"]
[Site "Chess.com"]
[Date "2021.03.02"]
[Round "2"]
[White "marvinguevara"]
[Black "As0nchess"]
[Result "0-1"]
[WhiteElo "2126"]
[BlackElo "2606"]
[TimeControl "180+1"]
[EndTime "10:18:26 PST"]
[Termination "As0nchess won on time"]

1. e4 {[%clk 0:03:00.9]} 1... c5 {[%clk 0:02:59]} 2. d4 {[%clk 0:03:00.4]} 2...
cxd4 {[%clk 0:02:59.1]} 3. c3 {[%clk 0:03:01.3]} 3... Nf6 {[%clk 0:02:59.3]} 4.
e5 {[%clk 0:03:00.5]} 4... Nd5 {[%clk 0:02:59.6]} 5. Bc4 {[%clk 0:03:01.1]} 5...
e6 {[%clk 0:02:59.1]} 6. Nf3 {[%clk 0:02:53.8]} 6... d6 {[%clk 0:02:58.2]} 7.
O-O {[%clk 0:02:41]} 7... Nc6 {[%clk 0:02:57]} 8. exd6 {[%clk 0:02:38.7]} 8...
Bxd6 {[%clk 0:02:54.5]} 9. cxd4 {[%clk 0:02:30.7]} 9... O-O {[%clk 0:02:54]} 10.
Nc3 {[%clk 0:02:30.2]} 10... h6 {[%clk 0:02:40.3]} 11. Ne4 {[%clk 0:02:07.8]}
11... Nf6 {[%clk 0:02:28.7]} 12. Nxd6 {[%clk 0:02:02.3]} 12... Qxd6 {[%clk
0:02:29.6]} 13. h3 {[%clk 0:01:59.7]} 13... Rd8 {[%clk 0:02:28.9]} 14. Be3
{[%clk 0:01:57.1]} 14... b6 {[%clk 0:02:28.8]} 15. Qa4 {[%clk 0:01:48.3]} 15...
Bb7 {[%clk 0:02:27]} 16. Rfd1 {[%clk 0:01:41.7]} 16... Na5 {[%clk 0:02:27]} 17.
Be2 {[%clk 0:01:34.9]} 17... Rac8 {[%clk 0:02:26.6]} 18. Ne5 {[%clk 0:01:29.6]}
18... Nd5 {[%clk 0:02:11.4]} 19. Bd2 {[%clk 0:01:12.4]} 19... Nc6 {[%clk
0:02:06.5]} 20. Nxc6 {[%clk 0:01:07.1]} 20... Bxc6 {[%clk 0:02:07.4]} 21. Qb3
{[%clk 0:00:51.6]} 21... Nf4 {[%clk 0:02:06.1]} 22. Bf1 {[%clk 0:00:41.9]} 22...
Ng6 {[%clk 0:01:58.8]} 23. Bc3 {[%clk 0:00:37.5]} 23... Qf4 {[%clk 0:01:53.4]}
24. Rd3 {[%clk 0:00:35.9]} 24... Bd5 {[%clk 0:01:49.5]} 25. Qa4 {[%clk
0:00:33.3]} 25... a5 {[%clk 0:01:36]} 26. Rg3 {[%clk 0:00:31.2]} 26... h5 {[%clk
0:01:31.9]} 27. Rd1 {[%clk 0:00:15.4]} 27... Nh4 {[%clk 0:01:30.9]} 28. Bd2
{[%clk 0:00:12.8]} 28... Qd6 {[%clk 0:01:17.5]} 29. Bg5 {[%clk 0:00:12]} 29...
Nf5 {[%clk 0:01:17.5]} 30. Bxd8 {[%clk 0:00:11]} 30... Nxg3 {[%clk 0:01:17.3]}
31. Bh4 {[%clk 0:00:08.2]} 31... Nxf1 {[%clk 0:01:15.1]} 32. Kxf1 {[%clk
0:00:07.3]} 32... Qh2 {[%clk 0:01:13.3]} 33. f3 {[%clk 0:00:06.8]} 33... Qf4
{[%clk 0:01:06.1]} 34. Bf2 {[%clk 0:00:05.6]} 34... Kh7 {[%clk 0:00:55.2]} 35.
Kg1 {[%clk 0:00:05.7]} 35... Rc4 {[%clk 0:00:51.2]} 36. Qb3 {[%clk 0:00:03.9]}
36... Rb4 {[%clk 0:00:45.7]} 37. Qd3+ {[%clk 0:00:03.8]} 37... g6 {[%clk
0:00:43.9]} 38. b3 {[%clk 0:00:03.9]} 38... Qf5 {[%clk 0:00:32.2]} 39. Be1
{[%clk 0:00:03.9]} 39... Qxd3 {[%clk 0:00:28.8]} 40. Rxd3 {[%clk 0:00:04.8]}
40... Rb5 {[%clk 0:00:29.4]} 41. Bc3 {[%clk 0:00:04.3]} 41... Kg7 {[%clk
0:00:27.2]} 42. Re3 {[%clk 0:00:03.4]} 42... Kf6 {[%clk 0:00:26.7]} 43. Re5
{[%clk 0:00:02.9]} 43... Ke7 {[%clk 0:00:22.8]} 44. Kf2 {[%clk 0:00:03.1]} 44...
Kd6 {[%clk 0:00:22]} 45. Re2 {[%clk 0:00:02.9]} 45... f6 {[%clk 0:00:20.9]} 46.
Rc2 {[%clk 0:00:02.6]} 46... a4 {[%clk 0:00:18]} 47. bxa4 {[%clk 0:00:01.5]}
47... Rb1 {[%clk 0:00:17.4]} 0-1

[Event "*** Titled Tuesday Blitz"]
[Site "Chess.com"]
[Date "2021.03.02"]
[Round "2"]
[White "WanderingPuppet"]
[Black "gumimis"]
[Result "1-0"]
[WhiteElo "2475"]
[BlackElo "2278"]
[TimeControl "180+1"]
[EndTime "10:18:28 PST"]
[Termination "WanderingPuppet won on time"]

1. e4 {[%clk 0:03:00.9]} 1... c6 {[%clk 0:02:55.8]} 2. Nc3 {[%clk 0:02:59.8]}
2... d5 {[%clk 0:02:55.5]} 3. Nf3 {[%clk 0:03:00.4]} 3... d4 {[%clk 0:02:51.4]}
4. Ne2 {[%clk 0:03:00.3]} 4... c5 {[%clk 0:02:50.2]} 5. c3 {[%clk 0:03:00.6]}
5... Nc6 {[%clk 0:02:48.6]} 6. Nf4 {[%clk 0:02:57]} 6... e5 {[%clk 0:02:43.9]}
7. Nd5 {[%clk 0:02:53.9]} 7... Nf6 {[%clk 0:02:41]} 8. Nxf6+ {[%clk 0:02:50.5]}
8... Qxf6 {[%clk 0:02:40.3]} 9. Bb5 {[%clk 0:02:48.1]} 9... Bd7 {[%clk
0:02:36.6]} 10. d3 {[%clk 0:02:46.1]} 10... h6 {[%clk 0:02:35.6]} 11. O-O {[%clk
0:02:42.8]} 11... Bd6 {[%clk 0:02:29.2]} 12. h3 {[%clk 0:02:36.6]} 12... O-O
{[%clk 0:02:26.9]} 13. a4 {[%clk 0:02:30.1]} 13... Qg6 {[%clk 0:02:23.2]} 14.
Kh1 {[%clk 0:02:27.5]} 14... Rae8 {[%clk 0:02:15.8]} 15. Bc4 {[%clk 0:02:17.6]}
15... Kh8 {[%clk 0:02:13.5]} 16. a5 {[%clk 0:02:16.7]} 16... Qh5 {[%clk
0:02:03.9]} 17. a6 {[%clk 0:02:08.3]} 17... b6 {[%clk 0:02:02.3]} 18. Nh2 {[%clk
0:01:56.3]} 18... Qxd1 {[%clk 0:02:01.3]} 19. Rxd1 {[%clk 0:01:57.2]} 19... f5
{[%clk 0:02:00.9]} 20. exf5 {[%clk 0:01:53.3]} 20... Rxf5 {[%clk 0:01:55.9]} 21.
Kg1 {[%clk 0:01:43.7]} 21... e4 {[%clk 0:01:53.3]} 22. dxe4 {[%clk 0:01:42.4]}
22... Bxh2+ {[%clk 0:01:49.2]} 23. Kxh2 {[%clk 0:01:43.3]} 23... Rxf2 {[%clk
0:01:49.1]} 24. Bd5 {[%clk 0:01:34.2]} 24... Ne5 {[%clk 0:01:39.8]} 25. cxd4
{[%clk 0:01:23]} 25... cxd4 {[%clk 0:01:37.4]} 26. Ra3 {[%clk 0:01:17]} 26... d3
{[%clk 0:01:31.8]} 27. Kg3 {[%clk 0:00:57.3]} 27... Ref8 {[%clk 0:01:30.6]} 28.
Bd2 {[%clk 0:00:55]} 28... Bb5 {[%clk 0:01:04.7]} 29. Bc3 {[%clk 0:00:49.2]}
29... Nc4 {[%clk 0:00:57.7]} 30. Rb3 {[%clk 0:00:29.6]} 30... Bxa6 {[%clk
0:00:43.5]} 31. Rxd3 {[%clk 0:00:20.1]} 31... Na5 {[%clk 0:00:42.5]} 32. Re3
{[%clk 0:00:13.9]} 32... Nxb3 {[%clk 0:00:41.7]} 33. Bxb3 {[%clk 0:00:14.8]}
33... Bf1 {[%clk 0:00:39.6]} 34. Be5 {[%clk 0:00:08]} 34... Rxg2+ {[%clk
0:00:38.3]} 35. Kh4 {[%clk 0:00:07.4]} 35... Rg5 {[%clk 0:00:23.4]} 36. Bg3
{[%clk 0:00:01.9]} 36... Bb5 {[%clk 0:00:07.3]} 37. Bd6 {[%clk 0:00:01.7]} 37...
Rd8 {[%clk 0:00:03.3]} 38. Be7 {[%clk 0:00:01.1]} 38... Re8 {[%clk 0:00:01.5]}
39. Bxg5 {[%clk 0:00:01.2]} 39... hxg5+ {[%clk 0:00:01.9]} 40. Kxg5 {[%clk
0:00:02.1]} 40... Bd7 {[%clk 0:00:01.7]} 41. e5 {[%clk 0:00:01.4]} 41... Be6
{[%clk 0:00:02.3]} 42. Bc2 {[%clk 0:00:01.4]} 1-0

[Event "*** Titled Tuesday Blitz"]
[Site "Chess.com"]
[Date "2021.03.02"]
[Round "2"]
[White "SanchezKelvin"]
[Black "HanSchut"]
[Result "1-0"]
[WhiteElo "2446"]
[BlackElo "2227"]
[TimeControl "180+1"]
[EndTime "10:18:28 PST"]
[Termination "SanchezKelvin won on time"]

1. d4 {[%clk 0:03:00.9]} 1... Nf6 {[%clk 0:02:59.5]} 2. c4 {[%clk 0:02:58.6]}
2... g6 {[%clk 0:02:59.9]} 3. Nf3 {[%clk 0:02:53.1]} 3... Bg7 {[%clk 0:02:45.7]}
4. Nc3 {[%clk 0:02:54]} 4... d5 {[%clk 0:02:45.6]} 5. Bg5 {[%clk 0:02:24.9]}
5... Ne4 {[%clk 0:02:29.8]} 6. cxd5 {[%clk 0:02:15.4]} 6... Nxg5 {[%clk
0:02:27.6]} 7. Nxg5 {[%clk 0:02:16.3]} 7... e6 {[%clk 0:02:27.6]} 8. Qd2 {[%clk
0:02:10.2]} 8... h6 {[%clk 0:02:27.8]} 9. Nh3 {[%clk 0:02:09.6]} 9... exd5
{[%clk 0:02:28.2]} 10. Nf4 {[%clk 0:02:09.5]} 10... c6 {[%clk 0:02:24.5]} 11. h4
{[%clk 0:02:09.1]} 11... O-O {[%clk 0:02:18.3]} 12. e3 {[%clk 0:02:07]} 12...
Nd7 {[%clk 0:02:13.4]} 13. O-O-O {[%clk 0:02:02.3]} 13... Nf6 {[%clk 0:02:07.5]}
14. f3 {[%clk 0:02:00.6]} 14... b5 {[%clk 0:02:01.8]} 15. g4 {[%clk 0:01:58.6]}
15... Qa5 {[%clk 0:01:48.1]} 16. Kb1 {[%clk 0:01:56.4]} 16... b4 {[%clk
0:01:31.9]} 17. Nce2 {[%clk 0:01:53.6]} 17... Ba6 {[%clk 0:01:32.5]} 18. Ng3
{[%clk 0:01:53]} 18... Bc4 {[%clk 0:01:26.2]} 19. b3 {[%clk 0:01:49.4]} 19...
Bxf1 {[%clk 0:01:20.3]} 20. Rhxf1 {[%clk 0:01:50.3]} 20... c5 {[%clk 0:01:18.9]}
21. dxc5 {[%clk 0:01:43.6]} 21... Rfd8 {[%clk 0:01:10.7]} 22. Nd3 {[%clk
0:01:40.6]} 22... Rab8 {[%clk 0:01:02]} 23. Rc1 {[%clk 0:01:33.3]} 23... d4
{[%clk 0:01:01.8]} 24. e4 {[%clk 0:01:31.3]} 24... Rdc8 {[%clk 0:00:47.3]} 25.
h5 {[%clk 0:01:25.7]} 25... Nd7 {[%clk 0:00:43.3]} 26. hxg6 {[%clk 0:01:24.4]}
26... fxg6 {[%clk 0:00:44.2]} 27. c6 {[%clk 0:01:19.8]} 27... Ne5 {[%clk
0:00:44.2]} 28. Rc5 {[%clk 0:01:12]} 28... Qc7 {[%clk 0:00:32.3]} 29. f4 {[%clk
0:01:00.2]} 29... Nxd3 {[%clk 0:00:20.5]} 30. Qxd3 {[%clk 0:01:01.1]} 30... Rb6
{[%clk 0:00:20.2]} 31. f5 {[%clk 0:00:31.8]} 31... Rxc6 {[%clk 0:00:18.8]} 32.
Rxc6 {[%clk 0:00:31.9]} 32... Qxc6 {[%clk 0:00:19.7]} 33. f6 {[%clk 0:00:32.3]}
33... Bxf6 {[%clk 0:00:19.1]} 34. e5 {[%clk 0:00:32.4]} 34... Bg5 {[%clk
0:00:16.2]} 35. Ne4 {[%clk 0:00:31]} 35... Qd5 {[%clk 0:00:11.3]} 36. Nxg5
{[%clk 0:00:30.6]} 36... hxg5 {[%clk 0:00:12.2]} 37. Qxg6+ {[%clk 0:00:29.4]}
37... Kh8 {[%clk 0:00:10.3]} 38. Qh6+ {[%clk 0:00:29.4]} 38... Kg8 {[%clk
0:00:10.9]} 39. Qxg5+ {[%clk 0:00:29.2]} 39... Kh8 {[%clk 0:00:11.5]} 40. Qh5+
{[%clk 0:00:29.3]} 40... Kg8 {[%clk 0:00:11.6]} 41. Qg5+ {[%clk 0:00:27.9]}
41... Kh8 {[%clk 0:00:11.5]} 42. Qh6+ {[%clk 0:00:22.9]} 42... Kg8 {[%clk
0:00:11.5]} 43. Qg6+ {[%clk 0:00:22.4]} 43... Kh8 {[%clk 0:00:11.5]} 44. e6
{[%clk 0:00:11.9]} 44... d3 {[%clk 0:00:05.2]} 45. e7 {[%clk 0:00:09]} 45... d2
{[%clk 0:00:04.3]} 46. e8=Q+ {[%clk 0:00:08.3]} 46... Rxe8 {[%clk 0:00:04.9]}
47. Qxe8+ {[%clk 0:00:08.3]} 47... Kg7 {[%clk 0:00:05.6]} 48. Qe2 {[%clk
0:00:07.7]} 48... Qd4 {[%clk 0:00:02.9]} 49. Rd1 {[%clk 0:00:07.7]} 49... Qf4
{[%clk 0:00:01.4]} 50. Qxd2 {[%clk 0:00:07.6]} 50... Kg6 {[%clk 0:00:02.3]} 51.
Qxf4 {[%clk 0:00:07.3]} 1-0

[Event "*** Titled Tuesday Blitz"]
[Site "Chess.com"]
[Date "2021.03.02"]
[Round "2"]
[White "SergeyShtyka"]
[Black "Matols"]
[Result "1/2-1/2"]
[WhiteElo "2455"]
[BlackElo "2262"]
[TimeControl "180+1"]
[EndTime "10:18:29 PST"]
[Termination "Game drawn by repetition"]

1. e4 {[%clk 0:03:00.9]} 1... e6 {[%clk 0:02:59.4]} 2. Nf3 {[%clk 0:03:00.5]}
2... d5 {[%clk 0:02:59.1]} 3. e5 {[%clk 0:03:00.6]} 3... c5 {[%clk 0:02:58.4]}
4. b4 {[%clk 0:03:00.1]} 4... cxb4 {[%clk 0:02:57.3]} 5. a3 {[%clk 0:03:00.6]}
5... Nc6 {[%clk 0:02:53.5]} 6. axb4 {[%clk 0:02:59.8]} 6... Bxb4 {[%clk
0:02:52.6]} 7. c3 {[%clk 0:02:59.8]} 7... Bf8 {[%clk 0:02:52.3]} 8. d4 {[%clk
0:02:59.9]} 8... Nge7 {[%clk 0:02:52.2]} 9. Bd3 {[%clk 0:02:59.8]} 9... Nf5
{[%clk 0:02:49.7]} 10. Bxf5 {[%clk 0:02:58.2]} 10... exf5 {[%clk 0:02:49.3]} 11.
O-O {[%clk 0:02:58.8]} 11... Be7 {[%clk 0:02:48.7]} 12. Ba3 {[%clk 0:02:56.4]}
12... O-O {[%clk 0:02:46.5]} 13. Bxe7 {[%clk 0:02:56.2]} 13... Qxe7 {[%clk
0:02:46.3]} 14. Na3 {[%clk 0:02:54.9]} 14... Be6 {[%clk 0:02:36.1]} 15. Nb5
{[%clk 0:02:49.9]} 15... f6 {[%clk 0:02:33.1]} 16. Re1 {[%clk 0:02:47.8]} 16...
fxe5 {[%clk 0:02:26]} 17. Nxe5 {[%clk 0:02:47.2]} 17... a6 {[%clk 0:02:13.2]}
18. Na3 {[%clk 0:02:37.8]} 18... Nxe5 {[%clk 0:02:06.3]} 19. Rxe5 {[%clk
0:02:36.7]} 19... Qd7 {[%clk 0:02:02]} 20. Qd2 {[%clk 0:02:26.4]} 20... f4
{[%clk 0:02:00.3]} 21. Rae1 {[%clk 0:02:21.5]} 21... Rae8 {[%clk 0:01:58.3]} 22.
f3 {[%clk 0:02:07.5]} 22... Qd6 {[%clk 0:01:45]} 23. Nc2 {[%clk 0:02:06.4]}
23... Bd7 {[%clk 0:01:38.8]} 24. Nb4 {[%clk 0:01:56.4]} 24... Rxe5 {[%clk
0:01:22.8]} 25. Rxe5 {[%clk 0:01:55.5]} 25... Bc6 {[%clk 0:01:21.5]} 26. Nd3
{[%clk 0:01:51.8]} 26... Qf6 {[%clk 0:01:04.8]} 27. Nb4 {[%clk 0:01:28.3]} 27...
Rd8 {[%clk 0:00:55.9]} 28. Qa2 {[%clk 0:01:25.5]} 28... Qd6 {[%clk 0:00:28.6]}
29. Qd2 {[%clk 0:01:25.3]} 29... Qf6 {[%clk 0:00:27.4]} 30. h3 {[%clk
0:01:20.2]} 30... a5 {[%clk 0:00:26.1]} 31. Nd3 {[%clk 0:01:20.3]} 31... a4
{[%clk 0:00:25.4]} 32. Nxf4 {[%clk 0:01:15.2]} 32... a3 {[%clk 0:00:25.4]} 33.
Ne6 {[%clk 0:01:07]} 33... Re8 {[%clk 0:00:23.3]} 34. Qe1 {[%clk 0:00:38.8]}
34... a2 {[%clk 0:00:20.4]} 35. Nc5 {[%clk 0:00:39.1]} 35... Rxe5 {[%clk
0:00:19.2]} 36. dxe5 {[%clk 0:00:39.4]} 36... Qe7 {[%clk 0:00:19]} 37. Nb3
{[%clk 0:00:37.9]} 37... Qa3 {[%clk 0:00:18.5]} 38. Na1 {[%clk 0:00:38.2]} 38...
Qc5+ {[%clk 0:00:17.7]} 39. Kh2 {[%clk 0:00:34.2]} 39... d4 {[%clk 0:00:17.9]}
40. cxd4 {[%clk 0:00:32.8]} 40... Qxd4 {[%clk 0:00:17.9]} 41. e6 {[%clk
0:00:33.4]} 41... Qd6+ {[%clk 0:00:17.3]} 42. Kh1 {[%clk 0:00:33.2]} 42... Kf8
{[%clk 0:00:16.1]} 43. Qe2 {[%clk 0:00:25]} 43... Bd5 {[%clk 0:00:15.8]} 44. Qd2
{[%clk 0:00:16.2]} 44... Qxe6 {[%clk 0:00:16]} 45. Qf4+ {[%clk 0:00:16.5]} 45...
Ke7 {[%clk 0:00:15.4]} 46. Qc7+ {[%clk 0:00:16.3]} 46... Qd7 {[%clk 0:00:15.4]}
47. Qe5+ {[%clk 0:00:16.5]} 47... Kf7 {[%clk 0:00:15.3]} 48. Qf4+ {[%clk
0:00:16.5]} 48... Kg8 {[%clk 0:00:14.1]} 49. Kh2 {[%clk 0:00:16.7]} 49... b5
{[%clk 0:00:13]} 50. Qb8+ {[%clk 0:00:16.3]} 50... Kf7 {[%clk 0:00:12.4]} 51.
Qf4+ {[%clk 0:00:16.9]} 51... Ke7 {[%clk 0:00:12.3]} 52. Qe5+ {[%clk 0:00:16.7]}
52... Kf8 {[%clk 0:00:11.6]} 53. Qf4+ {[%clk 0:00:15.8]} 53... Ke7 {[%clk
0:00:11.5]} 54. Qe5+ {[%clk 0:00:15.8]} 54... Kd8 {[%clk 0:00:11.6]} 55. Qb8+
{[%clk 0:00:15.3]} 55... Ke7 {[%clk 0:00:11.8]} 56. Qe5+ {[%clk 0:00:15.4]}
1/2-1/2

[Event "*** Titled Tuesday Blitz"]
[Site "Chess.com"]
[Date "2021.03.02"]
[Round "2"]
[White "Grandmaster1369"]
[Black "Kapibara_Warri0r"]
[Result "1-0"]
[WhiteElo "2426"]
[BlackElo "2203"]
[TimeControl "180+1"]
[EndTime "10:18:29 PST"]
[Termination "Grandmaster1369 won on time"]

1. e4 {[%clk 0:03:00.9]} 1... c5 {[%clk 0:02:59.2]} 2. Nf3 {[%clk 0:03:01]} 2...
d6 {[%clk 0:02:59.7]} 3. Bb5+ {[%clk 0:03:00.3]} 3... Bd7 {[%clk 0:02:57.2]} 4.
Bxd7+ {[%clk 0:03:00.1]} 4... Qxd7 {[%clk 0:02:58.1]} 5. O-O {[%clk 0:03:00.3]}
5... g6 {[%clk 0:02:51.3]} 6. Qe2 {[%clk 0:03:01.2]} 6... Bg7 {[%clk 0:02:51.2]}
7. Rd1 {[%clk 0:02:59.8]} 7... Nc6 {[%clk 0:02:50.1]} 8. c3 {[%clk 0:03:00]}
8... h5 {[%clk 0:02:46.1]} 9. d4 {[%clk 0:02:58.6]} 9... cxd4 {[%clk 0:02:46.7]}
10. cxd4 {[%clk 0:02:59.5]} 10... Nh6 {[%clk 0:02:44.6]} 11. Nc3 {[%clk
0:02:59.2]} 11... O-O {[%clk 0:02:21.9]} 12. Bf4 {[%clk 0:02:54.5]} 12... Ng4
{[%clk 0:02:19]} 13. h3 {[%clk 0:02:51.3]} 13... Nf6 {[%clk 0:02:18.9]} 14. Rac1
{[%clk 0:02:50.3]} 14... Rac8 {[%clk 0:02:16.1]} 15. d5 {[%clk 0:02:38.7]} 15...
Nb8 {[%clk 0:02:01.3]} 16. e5 {[%clk 0:02:38.2]} 16... dxe5 {[%clk 0:01:46]} 17.
Nxe5 {[%clk 0:02:39.1]} 17... Qf5 {[%clk 0:01:44.5]} 18. Bh2 {[%clk 0:02:34.5]}
18... Nbd7 {[%clk 0:01:32.1]} 19. Nf3 {[%clk 0:02:30.3]} 19... Rfe8 {[%clk
0:01:23.5]} 20. Qe3 {[%clk 0:02:17]} 20... Nb6 {[%clk 0:01:19.9]} 21. Nd4 {[%clk
0:02:12.8]} 21... Qd7 {[%clk 0:01:16.2]} 22. Nde2 {[%clk 0:01:52]} 22... Rcd8
{[%clk 0:01:01.6]} 23. Nf4 {[%clk 0:01:41.1]} 23... Nc4 {[%clk 0:00:30.3]} 24.
Qe2 {[%clk 0:01:37.6]} 24... Nd6 {[%clk 0:00:26.9]} 25. Nd3 {[%clk 0:01:35.7]}
25... b6 {[%clk 0:00:23.9]} 26. Ne5 {[%clk 0:01:35.4]} 26... Qb7 {[%clk
0:00:24]} 27. Nc6 {[%clk 0:01:35.6]} 27... Rd7 {[%clk 0:00:20.5]} 28. b4 {[%clk
0:01:09.5]} 28... Nf5 {[%clk 0:00:20.2]} 29. b5 {[%clk 0:01:08.8]} 29... e6
{[%clk 0:00:14.9]} 30. dxe6 {[%clk 0:01:05.5]} 30... Rxd1+ {[%clk 0:00:15.8]}
31. Rxd1 {[%clk 0:01:02.2]} 31... Rxe6 {[%clk 0:00:16.7]} 32. Qd3 {[%clk
0:00:55.7]} 32... Qc8 {[%clk 0:00:08]} 33. a4 {[%clk 0:00:54.5]} 33... Kh7
{[%clk 0:00:07.8]} 34. Nd5 {[%clk 0:00:46]} 34... Nxd5 {[%clk 0:00:07.3]} 35.
Qxd5 {[%clk 0:00:46.9]} 35... Qe8 {[%clk 0:00:05.4]} 36. Qd2 {[%clk 0:00:35.9]}
36... Re4 {[%clk 0:00:05.7]} 37. Bb8 {[%clk 0:00:31.9]} 37... Rxa4 {[%clk
0:00:05.3]} 38. Qc2 {[%clk 0:00:31.1]} 38... Re4 {[%clk 0:00:04.9]} 39. Rd8
{[%clk 0:00:20.6]} 39... Re1+ {[%clk 0:00:03.2]} 40. Kh2 {[%clk 0:00:20.8]}
40... Qe6 {[%clk 0:00:03.5]} 41. Qd2 {[%clk 0:00:16.3]} 41... Ra1 {[%clk
0:00:02.5]} 42. Rd3 {[%clk 0:00:10.1]} 42... Qf6 {[%clk 0:00:02.1]} 43. Rf3
{[%clk 0:00:08.6]} 43... Qe6 {[%clk 0:00:02.2]} 44. Nd8 {[%clk 0:00:08.7]} 44...
Be5+ {[%clk 0:00:01.8]} 45. g3 {[%clk 0:00:08.5]} 45... Qe7 {[%clk 0:00:01.4]}
46. Nc6 {[%clk 0:00:08.2]} 1-0

[Event "*** Titled Tuesday Blitz"]
[Site "Chess.com"]
[Date "2021.03.02"]
[Round "2"]
[White "Manukyan_Artak"]
[Black "ZiggyStardust64"]
[Result "0-1"]
[WhiteElo "2328"]
[BlackElo "2627"]
[TimeControl "180+1"]
[EndTime "10:18:30 PST"]
[Termination "ZiggyStardust64 won by resignation"]

1. e4 {[%clk 0:01:41.9]} 1... c6 {[%clk 0:02:55.8]} 2. d4 {[%clk 0:01:41.6]}
2... d5 {[%clk 0:02:56.1]} 3. e5 {[%clk 0:01:42.2]} 3... c5 {[%clk 0:02:56.4]}
4. c4 {[%clk 0:01:42.8]} 4... Nc6 {[%clk 0:02:40.2]} 5. dxc5 {[%clk 0:01:39.6]}
5... e6 {[%clk 0:02:38.3]} 6. cxd5 {[%clk 0:01:38.9]} 6... exd5 {[%clk
0:02:39.2]} 7. Nc3 {[%clk 0:01:29.3]} 7... Be6 {[%clk 0:02:38.7]} 8. Nf3 {[%clk
0:01:16.2]} 8... Bxc5 {[%clk 0:02:38.2]} 9. Bd3 {[%clk 0:01:02.8]} 9... Nge7
{[%clk 0:02:38.2]} 10. O-O {[%clk 0:01:02.2]} 10... Ng6 {[%clk 0:02:38.6]} 11.
Bg5 {[%clk 0:00:47]} 11... Be7 {[%clk 0:02:38]} 12. Bxe7 {[%clk 0:00:45.5]}
12... Ncxe7 {[%clk 0:02:38.5]} 13. Nb5 {[%clk 0:00:41.6]} 13... O-O {[%clk
0:02:36.7]} 14. Nd6 {[%clk 0:00:39.3]} 14... Nxe5 {[%clk 0:02:33.3]} 15. Nxe5
{[%clk 0:00:24.5]} 15... Qxd6 {[%clk 0:02:32.8]} 16. Re1 {[%clk 0:00:21.9]}
16... h6 {[%clk 0:02:23.4]} 17. Qf3 {[%clk 0:00:18.3]} 17... Nc6 {[%clk
0:02:13.4]} 18. Nxc6 {[%clk 0:00:16.2]} 18... bxc6 {[%clk 0:02:14.3]} 19. Rad1
{[%clk 0:00:14.2]} 19... Rab8 {[%clk 0:02:12.4]} 20. b3 {[%clk 0:00:14.3]} 20...
a5 {[%clk 0:02:12.7]} 21. Bc2 {[%clk 0:00:12.8]} 21... Rfe8 {[%clk 0:01:47.2]}
22. h4 {[%clk 0:00:12.2]} 22... g6 {[%clk 0:01:14.8]} 23. h5 {[%clk 0:00:11.8]}
23... Kg7 {[%clk 0:01:14.9]} 24. hxg6 {[%clk 0:00:11.7]} 24... fxg6 {[%clk
0:01:15.8]} 25. Qc3+ {[%clk 0:00:10.8]} 25... Kf7 {[%clk 0:01:10.9]} 26. Qf3+
{[%clk 0:00:06.6]} 26... Kg7 {[%clk 0:01:11.4]} 27. Qc3+ {[%clk 0:00:06.4]}
27... Kf7 {[%clk 0:00:49.5]} 28. Qf3+ {[%clk 0:00:06.4]} 28... Ke7 {[%clk
0:00:50.1]} 29. Bxg6 {[%clk 0:00:04.9]} 29... Rf8 {[%clk 0:00:50.3]} 30. Qh3
{[%clk 0:00:04.4]} 30... Kd7 {[%clk 0:00:48.7]} 31. Qxh6 {[%clk 0:00:03.4]}
31... Kc7 {[%clk 0:00:35.7]} 32. Qg7+ {[%clk 0:00:03.5]} 32... Kb6 {[%clk
0:00:35.5]} 33. Qd4+ {[%clk 0:00:02.9]} 33... c5 {[%clk 0:00:35.4]} 34. Qe3
{[%clk 0:00:02.7]} 34... Rf6 {[%clk 0:00:32.6]} 35. Bd3 {[%clk 0:00:02.5]} 35...
Rh8 {[%clk 0:00:31.2]} 36. Qg3 {[%clk 0:00:02.5]} 36... Qxg3 {[%clk 0:00:27.9]}
37. fxg3 {[%clk 0:00:03.4]} 37... Rg8 {[%clk 0:00:28.2]} 38. Re3 {[%clk
0:00:03.4]} 38... d4 {[%clk 0:00:25.5]} 39. Rf3 {[%clk 0:00:03.8]} 39... Rfg6
{[%clk 0:00:22.2]} 40. Re1 {[%clk 0:00:02.7]} 40... Rh6 {[%clk 0:00:21.3]} 41.
Kf2 {[%clk 0:00:02.7]} 41... Bg4 {[%clk 0:00:20.6]} 42. Rf4 {[%clk 0:00:02.9]}
42... Bd7 {[%clk 0:00:20.5]} 43. Re5 {[%clk 0:00:03.2]} 43... a4 {[%clk
0:00:20.4]} 44. bxa4 {[%clk 0:00:02.9]} 44... Rc8 {[%clk 0:00:19.8]} 45. Rfe4
{[%clk 0:00:03.3]} 45... c4 {[%clk 0:00:19.8]} 46. Be2 {[%clk 0:00:03.9]} 46...
d3 {[%clk 0:00:20.1]} 47. Bf3 {[%clk 0:00:04.4]} 47... Rf6 {[%clk 0:00:20.9]}
48. Rd4 {[%clk 0:00:03.6]} 48... Bc6 {[%clk 0:00:20.5]} 49. Rb5+ {[%clk
0:00:03.4]} 49... Bxb5 {[%clk 0:00:20.6]} 50. axb5 {[%clk 0:00:04.3]} 50... c3
{[%clk 0:00:20.2]} 51. Rd5 {[%clk 0:00:05.2]} 51... c2 {[%clk 0:00:20.2]} 52. g4
{[%clk 0:00:06.1]} 52... c1=Q {[%clk 0:00:20.6]} 53. g5 {[%clk 0:00:07]} 53...
Qd2+ {[%clk 0:00:20.1]} 54. Kg3 {[%clk 0:00:07.9]} 54... Qf4+ {[%clk 0:00:20.1]}
55. Kf2 {[%clk 0:00:07.8]} 55... Rd6 {[%clk 0:00:20]} 56. Rxd6+ {[%clk
0:00:07.6]} 56... Qxd6 {[%clk 0:00:20.9]} 57. g6 {[%clk 0:00:08.4]} 57... d2
{[%clk 0:00:21.3]} 0-1